[Event "FIDE WSTC Open 65 2025"]
[Site "Prague"]
[Date "2025.02.21"]
[Round "5.14"]
[White "Boulard, Eric"]
[Black "Stebbings, Anthony J"]
[Result "1/2-1/2"]
[Annotator "RC"]
[ECO "A30"]
[WhiteElo "2162"]
[BlackElo "2239"]
[PlyCount "103"]
[EventDate "2025.02.17"]
[EventType "team-tourn"]
[EventCountry "CZE"]
[SourceTitle "playchess.com"]
[Source "ChessBase"]
[SourceQuality "1"]
[TimeControl "40/5400+30:1800+30"]

1. c4 {[%emt 0:00:05]} c5 {[%emt 0:00:05]} 2. Nf3 {[%emt 0:00:25]} Nc6 {[%emt 0:00:04]} 3. g3 {[%emt 0:00:11]} g6 {[%emt 0:00:07]} 4. d4 {[%emt 0:01:06]} cxd4 {[%emt 0:00:06]} 5. Nxd4 {[%emt 0:00:09]} Bg7 {[%emt 0:00:06]} 6. Nxc6 {[%emt 0:00:22]} bxc6 {[%emt 0:00:07]} 7. Bg2 {[%emt 0:00:11]} Rb8 {[%emt 0:05:25]} 8. O-O {[%emt 0:02:44]} Rxb2 {[%emt 0:00:58]} 9. Bxb2 {[%emt 0:00:19]} Bxb2 {[%emt 0:00:05]} 10. Nd2 {[%emt 0:00:07]} Bxa1 {[%emt 0:00:12]} 11. Qxa1 {[%emt 0:00:06]} Nf6 {[%emt 0:03:32]} 12. Ne4 {[%emt 0:00:16]} O-O {[%emt 0:01:24]} 13. Nxf6+ {[%emt 0:00:36]} exf6 {[%emt 0:00:04]} 14. Qd4 {[%emt 0:36:19]} Qa5 {[%emt 0:04:45]} 15. Bf3 {[%emt 0:00:53]} Kg7 {[%emt 0:11:10]} 16. Rb1 {[%emt 0:13:07]} c5 {[%emt 0:20:13]} 17. Qb2 {[%emt 0:08:08]} d6 {[%emt 0:01:16]} 18. h4 {[%emt 0:01:32]} h5 {[%emt 0:00:59]} 19. Rd1 {[%emt 0:02:49]} Qc7 {[%emt 0:03:30]} 20. Qd2 {[%emt 0:02:52]} Rd8 {[%emt 0:00:16]} 21. Rb1 {[%emt 0:03:03]} Qe7 {[%emt 0:00:19]} 22. Bd5 {[%emt 0:00:40]} Be6 {[%emt 0:05:37]} 23. Rb7 {[%emt 0:06:02]} Rd7 {[%emt 0:00:11]} 24. Rb8 {[%emt 0:00:07]} Bxd5 {[%emt 0:01:24]} 25. Qxd5 {[%emt 0:00:24]} f5 {[%emt 0:05:17]} 26. e3 {[%emt 0:00:34]} Qe4 {[%emt 0:01:23]} 27. Qd2 {[%emt 0:03:56]} Qxc4 {[%emt 0:06:21]} 28. Qb2+ {[%emt 0:00:18]} f6 {[%emt 0:00:06]} 29. a3 {[%emt 0:00:06]} Qf7 {[%emt 0:05:33]} 30. Qb5 {[%emt 0:01:58]} Rc7 {[%emt 0:14:08]} 31. Kh2 {[%emt 0:05:16]} c4 {[%emt 0:00:27]} 32. Ra8 {[%emt 0:00:29]} c3 {[%emt 0:00:16]} 33. Qb8 {[%emt 0:00:40]} Kh6 {[%emt 0:00:26]} 34. Qh8+ {[%emt 0:00:46]} Qh7 {[%emt 0:00:03]} 35. Qf8+ {[%emt 0:00:16]} Qg7 {[%emt 0:00:09]} 36. Qxd6 {[%emt 0:00:06]} c2 {[%emt 0:00:25]} 37. Rh8+ {[%emt 0:00:07]} Qxh8 {[%emt 0:00:21]} 38. Qxc7 {[%emt 0:00:06]} Qe8 {[%emt 0:02:49]} 39. Qxc2 {[%emt 0:03:04]} Qd7 {[%emt 0:01:13]} 40. Qc5 {[%emt 0:00:54]} Kg7 {[%emt 0:04:19]} 41. Qd4 {[%emt 0:20:32]} Qb7 {[%emt 0:03:45]} 42. a4 {[%emt 0:01:42]} a5 {[%emt 0:06:43]} 43. Qc5 {[%emt 0:07:57]} Qb4 {[%emt 0:00:21]} 44. Qc6 {[%emt 0:03:03]} Kf7 {[%emt 0:02:20]} 45. Qd7+ {[%emt 0:00:17]} Kg8 {[%emt 0:00:10]} 46. Qb5 {[%emt 0:03:12]} Kg7 {[%emt 0:00:42]} 47. Qe8 {[%emt 0:00:40]} Qc5 {[%emt 0:01:24]} 48. Qd7+ {[%emt 0:00:51]} Kg8 {[%emt 0:00:07]} 49. Qb5 {[%emt 0:00:13]} Qb4 {[%emt 0:01:17]} 50. Kg2 {[%emt 0:01:57]} Kg7 {[%emt 0:00:19]} 51. Kf1 {[%emt 0:01:21]} Qxb5+ {[%emt 0:00:38]} 52. axb5 {[%emt 0:00:09]} 1/2-1/2

[Event "FIDE WSTC Open 65 2025"]
[Site "Prague"]
[Date "2025.02.21"]
[Round "5.15"]
[White "Povah, Nigel E"]
[Black "Fayard, Alain"]
[Result "1-0"]
[Annotator "ChessBase"]
[ECO "A80"]
[WhiteElo "2206"]
[BlackElo "2117"]
[PlyCount "45"]
[EventDate "2025.02.17"]
[EventType "team-tourn"]
[EventCountry "CZE"]
[SourceTitle "playchess.com"]
[Source "ChessBase"]
[SourceQuality "1"]
[TimeControl "40/5400+30:1800+30"]

1. d4 {[%emt 0:00:09]} f5 {[%emt 0:00:09]} 2. Bg5 {[%emt 0:00:25]} c6 {[%emt 0:00:14]} 3. e3 {[%emt 0:07:03]} Qb6 {[%emt 0:00:47]} 4. Qc1 {[%emt 0:17:31]} g6 {[%emt 0:05:31]} 5. Bd3 {[%emt 0:06:11]} Bg7 {[%emt 0:01:01]} 6. f4 {[%emt 0:04:32]} d6 {[%emt 0:05:58]} 7. Nf3 {[%emt 0:02:47]} Nd7 {[%emt 0:05:32]} 8. Nbd2 {[%emt 0:02:33]} Ngf6 {[%emt 0:02:48]} 9. c3 {[%emt 0:01:52]} O-O {[%emt 0:02:05]} 10. Qc2 {[%emt 0:04:20]} Qc7 {[%emt 0:05:38]} 11. O-O {[%emt 0:11:08]} d5 {[%emt 0:04:40]} 12. c4 {[%emt 0:07:24]} e6 {[%emt 0:03:24]} 13. c5 {[%emt 0:02:31]} Ne4 {[%emt 0:03:12]} 14. Bh4 {[%emt 0:04:44]} Ndf6 {[%emt 0:02:27]} 15. Bxf6 {[%emt 0:03:32]} Bxf6 {[%emt 0:00:37]} 16. b4 {[%emt 0:02:13]} h6 {[%emt 0:08:41]} 17. Bxe4 {[%emt 0:00:46]} fxe4 {[%emt 0:00:32]} 18. Ne5 {[%emt 0:00:35]} Kh7 {[%emt 0:02:47]} 19. Kh1 {[%emt 0:01:37]} Bd7 {[%emt 0:02:06]} 20. Nb3 {[%emt 0:03:09]} Rg8 {[%emt 0:05:43]} 21. Qe2 {[%emt 0:01:29]} Rg7 {[%emt 0:05:07]} 22. Qg4 {[%emt 0:02:15]} Rag8 {[%emt 0:02:15]} 23. Qh3 {[%emt 0:00:30]} 1-0

[Event "FIDE WSTC Open 65 2025"]
[Site "Prague"]
[Date "2025.02.21"]
[Round "5.16"]
[White "Theon, Pierre"]
[Black "Baker, Chris W"]
[Result "1/2-1/2"]
[Annotator "ChessBase"]
[ECO "C56"]
[WhiteElo "2079"]
[BlackElo "2150"]
[PlyCount "34"]
[EventDate "2025.02.17"]
[EventType "team-tourn"]
[EventCountry "CZE"]
[SourceTitle "playchess.com"]
[Source "ChessBase"]
[SourceQuality "1"]
[TimeControl "40/5400+30:1800+30"]

1. e4 {[%emt 0:00:03]} e5 {[%emt 0:00:28]} 2. Nf3 {[%emt 0:00:04]} Nc6 {[%emt 0:00:20]} 3. Bc4 {[%emt 0:00:04]} Nf6 {[%emt 0:01:06]} 4. d4 {[%emt 0:00:14]} exd4 {[%emt 0:00:35]} 5. e5 {[%emt 0:00:05]} Ne4 {[%emt 0:02:55]} 6. Qe2 {[%emt 0:00:17]} Nc5 {[%emt 0:00:42]} 7. c3 {[%emt 0:00:08]} Ne6 {[%emt 0:05:12]} 8. O-O {[%emt 0:01:29]} Be7 {[%emt 0:09:28]} 9. Qe4 {[%emt 0:09:45]} d6 {[%emt 0:08:16]} 10. cxd4 {[%emt 0:12:57]} dxe5 {[%emt 0:04:01]} 11. d5 {[%emt 0:09:05]} Nc5 {[%emt 0:01:10]} 12. Qe2 {[%emt 0:00:07]} Na5 {[%emt 0:04:05]} 13. Nxe5 {[%emt 0:15:12]} Nxc4 {[%emt 0:03:19]} 14. Qxc4 {[%emt 0:00:45]} O-O {[%emt 0:00:49]} 15. Be3 {[%emt 0:07:23]} Nd7 {[%emt 0:02:16]} 16. Nxd7 {[%emt 0:01:37]} Bxd7 {[%emt 0:08:22]} 17. Nc3 {[%emt 0:03:52]} Re8 {[%emt 0:05:19]} 1/2-1/2

[Event "FIDE WSTC Open 65 2025"]
[Site "Prague"]
[Date "2025.02.21"]
[Round "5.17"]
[White "Houston, David"]
[Black "Renman, Nils-Gustaf"]
[Result "1/2-1/2"]
[Annotator "RC"]
[ECO "C09"]
[WhiteElo "2235"]
[BlackElo "2306"]
[PlyCount "87"]
[EventDate "2025.02.17"]
[EventType "team-tourn"]
[EventCountry "CZE"]
[SourceTitle "playchess.com"]
[Source "ChessBase"]
[SourceQuality "1"]
[TimeControl "40/5400+30:1800+30"]

1. e4 {[%emt 0:00:07]} e6 {[%emt 0:00:05]} 2. d4 {[%emt 0:00:43]} d5 {[%emt 0:00:07]} 3. Nd2 {[%emt 0:01:12]} c5 {[%emt 0:01:05]} 4. Ngf3 {[%emt 0:00:59]} Nc6 {[%emt 0:00:09]} 5. exd5 {[%emt 0:01:37]} exd5 {[%emt 0:00:09]} 6. dxc5 {[%emt 0:04:23]} Bxc5 {[%emt 0:00:23]} 7. Nb3 {[%emt 0:01:31]} Bb6 {[%emt 0:06:35]} 8. c3 {[%emt 0:01:30]} Nf6 {[%emt 0:01:17]} 9. Be2 {[%emt 0:01:12]} O-O {[%emt 0:01:04]} 10. O-O {[%emt 0:03:29]} Re8 {[%emt 0:05:31]} 11. Nbd4 {[%emt 0:11:47]} Bg4 {[%emt 0:10:19]} 12. Be3 {[%emt 0:08:41]} Nxd4 {[%emt 0:12:05]} 13. cxd4 {[%emt 0:11:46]} Qd6 {[%emt 0:09:45]} 14. h3 {[%emt 0:08:15]} Bh5 {[%emt 0:00:12]} 15. a3 {[%emt 0:04:59]} Ne4 {[%emt 0:04:42]} 16. Ne5 {[%emt 0:13:08]} Bxe2 {[%emt 0:00:51]} 17. Qxe2 {[%emt 0:00:09]} Qe6 {[%emt 0:06:26]} 18. Qd3 {[%emt 0:03:54]} Rac8 {[%emt 0:06:52]} 19. Rfc1 {[%emt 0:01:27]} Nd6 {[%emt 0:00:58]} 20. Rxc8 {[%emt 0:01:35]} Rxc8 {[%emt 0:00:04]} 21. Rc1 {[%emt 0:01:59]} Rxc1+ {[%emt 0:01:14]} 22. Bxc1 {[%emt 0:00:07]} Nc4 {[%emt 0:08:18]} 23. Nf3 {[%emt 0:07:05]} Qe4 {[%emt 0:01:49]} 24. Qc3 {[%emt 0:00:54]} Qe2 {[%emt 0:05:35]} 25. b3 {[%emt 0:01:59]} Ba5 {[%emt 0:01:28]} 26. b4 {[%emt 0:02:02]} Bb6 {[%emt 0:01:45]} 27. g3 {[%emt 0:02:28]} a5 {[%emt 0:06:06]} 28. Kg2 {[%emt 0:00:41]} a4 {[%emt 0:00:43]} 29. h4 {[%emt 0:00:57]} f6 {[%emt 0:00:40]} 30. Ng1 {[%emt 0:02:20]} Qd1 {[%emt 0:01:37]} 31. Nf3 {[%emt 0:00:43]} Kf7 {[%emt 0:00:15]} 32. h5 {[%emt 0:01:18]} Qb3 {[%emt 0:01:57]} 33. Qe1 {[%emt 0:00:11]} Qd3 {[%emt 0:01:43]} 34. Qf1 {[%emt 0:01:01]} Qc2 {[%emt 0:03:28]} 35. Qe1 {[%emt 0:00:08]} Qd3 {[%emt 0:01:26]} 36. Qf1 {[%emt 0:00:32]} Qb3 {[%emt 0:00:45]} 37. Qe1 {[%emt 0:00:30]} Nxa3 {[%emt 0:00:12]} 38. Ng5+ {[%emt 0:00:12]} fxg5 {[%emt 0:00:36]} 39. Bxg5 {[%emt 0:00:06]} h6 {[%emt 0:00:43]} 40. Qe7+ {[%emt 0:00:10]} Kg8 {[%emt 0:00:01]} 41. Qe8+ {[%emt 0:30:29]} Kh7 {[%emt 0:30:02]} 42. Qg6+ {[%emt 0:00:55]} Kh8 {[%emt 0:00:01]} 43. Qe8+ {[%emt 0:00:11]} Kh7 {[%emt 0:00:04]} 44. Qg6+ {[%emt 0:00:10]} 1/2-1/2

[Event "FIDE WSTC Open 65 2025"]
[Site "Prague"]
[Date "2025.02.21"]
[Round "5.18"]
[White "Wahlbom, Magnus"]
[Black "Wallace, John Paul"]
[Result "1/2-1/2"]
[Annotator "RC"]
[ECO "C64"]
[WhiteElo "2109"]
[BlackElo "2351"]
[PlyCount "60"]
[EventDate "2025.02.17"]
[EventType "team-tourn"]
[EventCountry "CZE"]
[SourceTitle "playchess.com"]
[Source "ChessBase"]
[SourceQuality "1"]
[TimeControl "40/5400+30:1800+30"]

1. e4 {[%emt 0:00:08]} e5 {[%emt 0:00:05]} 2. Nf3 {[%emt 0:00:26]} Nc6 {[%emt 0:00:07]} 3. Bb5 {[%emt 0:00:20]} Bc5 {[%emt 0:00:28]} 4. O-O {[%emt 0:02:19]} Nd4 {[%emt 0:00:36]} 5. Bc4 {[%emt 0:01:28]} d6 {[%emt 0:02:02]} 6. c3 {[%emt 0:00:20]} Nxf3+ {[%emt 0:00:14]} 7. Qxf3 {[%emt 0:00:09]} Nf6 {[%emt 0:00:07]} 8. d3 {[%emt 0:03:01]} Be6 {[%emt 0:01:58]} 9. Bb3 {[%emt 0:03:57]} O-O {[%emt 0:01:46]} 10. Be3 {[%emt 0:06:48]} Bxe3 {[%emt 0:03:40]} 11. fxe3 {[%emt 0:02:44]} a5 {[%emt 0:09:42]} 12. Nd2 {[%emt 0:16:44]} Bg4 {[%emt 0:01:12]} 13. Qf2 {[%emt 0:00:26]} a4 {[%emt 0:00:08]} 14. Bc2 {[%emt 0:00:21]} c5 {[%emt 0:08:17]} 15. Nf3 {[%emt 0:14:52]} b5 {[%emt 0:12:38]} 16. Qg3 {[%emt 0:04:31]} a3 {[%emt 0:04:20]} 17. b3 {[%emt 0:02:20]} Be6 {[%emt 0:06:15]} 18. Rac1 {[%emt 0:04:33]} Nh5 {[%emt 0:06:17]} 19. Qe1 {[%emt 0:01:42]} g6 {[%emt 0:01:26]} 20. d4 {[%emt 0:01:52]} Bg4 {[%emt 0:02:04]} 21. Nh4 {[%emt 0:05:54]} cxd4 {[%emt 0:03:59]} 22. exd4 {[%emt 0:00:56]} Nf4 {[%emt 0:04:43]} 23. Nf3 {[%emt 0:00:44]} Rc8 {[%emt 0:00:54]} 24. Kh1 {[%emt 0:00:56]} Qb6 {[%emt 0:07:24]} 25. g3 {[%emt 0:05:54]} Ne6 {[%emt 0:05:27]} 26. d5 {[%emt 0:00:23]} Nc5 {[%emt 0:00:51]} 27. Qd2 {[%emt 0:00:52]} Bxf3+ {[%emt 0:01:17]} 28. Rxf3 {[%emt 0:00:10]} b4 {[%emt 0:01:15]} 29. c4 {[%emt 0:00:38]} Kg7 {[%emt 0:01:20]} 30. h4 {[%emt 0:02:41]} f6 {[%emt 0:04:20]} 1/2-1/2

[Event "FIDE WSTC Open 65 2025"]
[Site "Prague"]
[Date "2025.02.21"]
[Round "5.19"]
[White "Smith, Andrew Philip"]
[Black "Malmdin, Nils-Ake"]
[Result "1/2-1/2"]
[Annotator "ChessBase"]
[ECO "A43"]
[WhiteElo "2117"]
[BlackElo "2094"]
[PlyCount "95"]
[EventDate "2025.02.17"]
[EventType "team-tourn"]
[EventCountry "CZE"]
[SourceTitle "playchess.com"]
[Source "ChessBase"]
[SourceQuality "1"]
[TimeControl "40/5400+30:1800+30"]

1. e4 {[%emt 0:02:39]} g6 {[%emt 0:00:35]} 2. d4 {[%emt 0:00:14]} Bg7 {[%emt 0:00:12]} 3. Nf3 {[%emt 0:01:24]} c5 {[%emt 0:00:52]} 4. d5 {[%emt 0:05:05]} d6 {[%emt 0:00:19]} 5. Bb5+ {[%emt 0:03:34]} Nd7 {[%emt 0:01:30]} 6. a4 {[%emt 0:00:50]} Ngf6 {[%emt 0:00:36]} 7. Nc3 {[%emt 0:02:02]} O-O {[%emt 0:00:49]} 8. h3 {[%emt 0:00:27]} Ne8 {[%emt 0:02:53]} 9. O-O {[%emt 0:01:18]} Nc7 {[%emt 0:08:38]} 10. Bc4 {[%emt 0:00:56]} b6 {[%emt 0:15:16]} 11. Qd3 {[%emt 0:03:06]} a6 {[%emt 0:04:04]} 12. Bg5 {[%emt 0:07:55]} h6 {[%emt 0:03:27]} 13. Bh4 {[%emt 0:04:12]} g5 {[%emt 0:06:35]} 14. Bg3 {[%emt 0:00:52]} Ne5 {[%emt 0:04:12]} 15. Nxe5 {[%emt 0:12:12]} dxe5 {[%emt 0:00:12]} 16. Qd2 {[%emt 0:07:30]} Qd6 {[%emt 0:04:59]} 17. Be2 {[%emt 0:06:37]} Bd7 {[%emt 0:11:48]} 18. Bg4 {[%emt 0:03:34]} b5 {[%emt 0:01:45]} 19. Bxd7 {[%emt 0:04:52]} Qxd7 {[%emt 0:00:11]} 20. f3 {[%emt 0:00:31]} Ne6 {[%emt 0:03:56]} 21. Nd1 {[%emt 0:07:28]} Nd4 {[%emt 0:00:44]} 22. Ne3 {[%emt 0:00:26]} e6 {[%emt 0:00:49]} 23. Kh1 {[%emt 0:06:00]} exd5 {[%emt 0:03:23]} 24. Nxd5 {[%emt 0:00:11]} Qb7 {[%emt 0:00:37]} 25. axb5 {[%emt 0:08:09]} axb5 {[%emt 0:00:27]} 26. Rxa8 {[%emt 0:00:59]} Rxa8 {[%emt 0:00:39]} 27. c3 {[%emt 0:01:41]} Ne6 {[%emt 0:00:40]} 28. Ne3 {[%emt 0:00:33]} Rd8 {[%emt 0:02:02]} 29. Qf2 {[%emt 0:00:38]} Nf4 {[%emt 0:01:52]} 30. Nf5 {[%emt 0:00:54]} Nd3 {[%emt 0:03:46]} 31. Qc2 {[%emt 0:01:39]} Bf8 {[%emt 0:00:19]} 32. b3 {[%emt 0:01:03]} c4 {[%emt 0:06:52]} 33. bxc4 {[%emt 0:00:29]} bxc4 {[%emt 0:00:09]} 34. Qa4 {[%emt 0:01:10]} Qb3 {[%emt 0:00:27]} 35. Qc6 {[%emt 0:00:49]} Qxc3 {[%emt 0:05:22]} 36. Nxh6+ {[%emt 0:00:31]} Bxh6 {[%emt 0:00:14]} 37. Qxh6 {[%emt 0:00:06]} Qd2 {[%emt 0:00:24]} 38. Bh4 {[%emt 0:05:02]} Rd6 {[%emt 0:05:57]} 39. Bxg5 {[%emt 0:00:49]} Nf4 {[%emt 0:00:48]} 40. Bxf4 {[%emt 0:00:23]} exf4 {[%emt 0:00:12]} 41. Qh4 {[%emt 0:02:16]} c3 {[%emt 0:04:19]} 42. Ra1 {[%emt 0:02:57]} Qd1+ {[%emt 0:17:23]} 43. Rxd1 {[%emt 0:00:38]} Rxd1+ {[%emt 0:00:09]} 44. Kh2 {[%emt 0:00:03]} c2 {[%emt 0:00:15]} 45. Qg4+ {[%emt 0:07:00]} Kh7 {[%emt 0:00:15]} 46. Qf5+ {[%emt 0:00:55]} Kg7 {[%emt 0:00:14]} 47. Qg5+ {[%emt 0:00:39]} Kh7 {[%emt 0:00:20]} 48. Qf5+ {[%emt 0:00:26]} 1/2-1/2

[Event "FIDE WSTC Open 65 2025"]
[Site "Prague"]
[Date "2025.02.21"]
[Round "5.20"]
[White "Hammar, Bengt"]
[Black "Noone, Joe"]
[Result "1-0"]
[Annotator "RC"]
[ECO "B99"]
[WhiteElo "2100"]
[BlackElo "1934"]
[PlyCount "125"]
[EventDate "2025.02.17"]
[EventType "team-tourn"]
[EventCountry "CZE"]
[SourceTitle "playchess.com"]
[Source "ChessBase"]
[SourceQuality "1"]
[TimeControl "40/5400+30:1800+30"]

1. e4 {[%emt 0:00:29]} c5 {[%emt 0:00:14]} 2. Nf3 {[%emt 0:00:55]} d6 {[%emt 0:00:08]} 3. d4 {[%emt 0:00:46]} cxd4 {[%emt 0:00:07]} 4. Nxd4 {[%emt 0:00:13]} Nf6 {[%emt 0:00:06]} 5. Nc3 {[%emt 0:01:14]} a6 {[%emt 0:00:14]} 6. Bg5 {[%emt 0:00:46]} e6 {[%emt 0:01:12]} 7. f4 {[%emt 0:03:34]} Be7 {[%emt 0:01:17]} 8. Qf3 {[%emt 0:01:00]} Qc7 {[%emt 0:07:43]} 9. O-O-O {[%emt 0:01:37]} Nbd7 {[%emt 0:03:55]} 10. g4 {[%emt 0:08:48]} b5 {[%emt 0:06:08]} 11. Bxf6 {[%emt 0:01:00]} Nxf6 {[%emt 0:06:42]} 12. g5 {[%emt 0:00:28]} Nd7 {[%emt 0:00:44]} 13. a3 {[%emt 0:00:18]} Nb6 {[%emt 0:04:48]} 14. h4 {[%emt 0:01:50]} Bd7 {[%emt 0:27:13]} 15. f5 {[%emt 0:02:17]} e5 {[%emt 0:01:59]} 16. Nb3 {[%emt 0:01:58]} f6 {[%emt 0:04:06]} 17. Qh5+ {[%emt 0:03:08]} Kf8 {[%emt 0:00:22]} 18. Rh3 {[%emt 0:07:38]} Rc8 {[%emt 0:02:13]} 19. gxf6 {[%emt 0:00:51]} Bxf6 {[%emt 0:01:06]} 20. Rhd3 {[%emt 0:00:46]} Be8 {[%emt 0:01:24]} 21. Qg4 {[%emt 0:01:09]} Na4 {[%emt 0:06:22]} 22. R1d2 {[%emt 0:02:20]} Bf7 {[%emt 0:01:53]} 23. Nd5 {[%emt 0:07:38]} Qa7 {[%emt 0:11:20]} 24. Kb1 {[%emt 0:04:30]} h5 {[%emt 0:01:32]} 25. Qg3 {[%emt 0:00:47]} Bd8 {[%emt 0:00:42]} 26. Rg2 {[%emt 0:05:37]} Rg8 {[%emt 0:00:43]} 27. Rd1 {[%emt 0:06:29]} g5 {[%emt 0:02:25]} 28. hxg5 {[%emt 0:03:38]} Rxg5 {[%emt 0:00:04]} 29. Qh3 {[%emt 0:00:46]} Rxg2 {[%emt 0:02:36]} 30. Qxg2 {[%emt 0:00:55]} Nb6 {[%emt 0:01:37]} 31. Nc3 {[%emt 0:06:55]} Nc4 {[%emt 0:00:33]} 32. Rd3 {[%emt 0:02:37]} Qe7 {[%emt 0:01:22]} 33. Nd5 {[%emt 0:03:03]} Qh4 {[%emt 0:00:38]} 34. Qe2 {[%emt 0:00:39]} a5 {[%emt 0:01:13]} 35. Nd2 {[%emt 0:02:37]} Rb8 {[%emt 0:00:47]} 36. Nxc4 {[%emt 0:03:38]} bxc4 {[%emt 0:00:01]} 37. Rh3 {[%emt 0:00:09]} Qg5 {[%emt 0:00:31]} 38. Qxc4 {[%emt 0:00:20]} Qg1 {[%emt 0:00:53]} 39. Qe2 {[%emt 0:03:09]} h4 {[%emt 0:00:36]} 40. Rd3 {[%emt 0:06:57]} Bg5 {[%emt 0:01:10]} 41. Rd1 {[%emt 0:31:59]} Qc5 {[%emt 0:30:47]} 42. Ka1 {[%emt 0:01:10]} Kg7 {[%emt 0:00:00]} 43. c3 {[%emt 0:00:00]} Kh6 {[%emt 0:00:00]} 44. Bh3 {[%emt 0:00:00]} Rb3 {[%emt 0:00:00]} 45. Qc2 {[%emt 0:00:00]} Rb7 {[%emt 0:00:00]} 46. Bg4 {[%emt 0:00:00]} Be8 {[%emt 0:00:00]} 47. Qg2 {[%emt 0:00:00]} Qc8 {[%emt 0:00:00]} 48. Rg1 {[%emt 0:00:00]} Qd8 {[%emt 0:00:00]} 49. Be2 {[%emt 0:00:00]} Rg7 {[%emt 0:00:00]} 50. Qf1 {[%emt 0:00:00]} Bf6 {[%emt 0:00:00]} 51. Rxg7 {[%emt 0:00:00]} Kxg7 {[%emt 0:00:00]} 52. b4 {[%emt 0:00:00]} Bg5 {[%emt 0:00:00]} 53. Kb2 {[%emt 0:00:00]} Bf7 {[%emt 0:00:00]} 54. Bc4 {[%emt 0:00:00]} axb4 {[%emt 0:00:00]} 55. axb4 {[%emt 0:00:00]} Kh6 {[%emt 0:00:00]} 56. Bb3 {[%emt 0:00:00]} Bd2 {[%emt 0:00:00]} 57. f6 {[%emt 0:00:00]} Qc8 {[%emt 0:01:51]} 58. Qd3 {[%emt 0:00:00]} Bg5 {[%emt 0:01:21]} 59. Ne7 {[%emt 0:00:00]} Qf8 {[%emt 0:00:37]} 60. Qxd6 {[%emt 0:00:00]} Kh7 {[%emt 0:01:13]} 61. Qxe5 {[%emt 0:00:00]} Bxb3 {[%emt 0:03:53]} 62. Qxg5 {[%emt 0:00:05]} Bd1 {[%emt 0:00:57]} 63. Qxh4+ {[%emt 0:00:27]} 1-0

[Event "FIDE WSTC Open 65 2025"]
[Site "Prague"]
[Date "2025.02.21"]
[Round "5.21"]
[White "Hugentobler, Patrick"]
[Black "Prakken, Gerrit"]
[Result "1/2-1/2"]
[Annotator "RC"]
[ECO "C28"]
[WhiteElo "2242"]
[BlackElo "2155"]
[PlyCount "62"]
[EventDate "2025.02.17"]
[EventType "team-tourn"]
[EventCountry "CZE"]
[SourceTitle "playchess.com"]
[Source "ChessBase"]
[SourceQuality "1"]
[TimeControl "40/5400+30:1800+30"]

1. e4 {[%emt 0:00:03]} e5 {[%emt 0:00:08]} 2. Bc4 {[%emt 0:00:10]} Nf6 {[%emt 0:00:17]} 3. d3 {[%emt 0:00:09]} Nc6 {[%emt 0:00:15]} 4. Nc3 {[%emt 0:00:11]} Bb4 {[%emt 0:00:37]} 5. Nge2 {[%emt 0:00:29]} d5 {[%emt 0:01:15]} 6. exd5 {[%emt 0:00:21]} Nxd5 {[%emt 0:00:27]} 7. O-O {[%emt 0:00:29]} Be6 {[%emt 0:00:52]} 8. Bb3 {[%emt 0:06:36]} O-O {[%emt 0:03:28]} 9. Nxd5 {[%emt 0:03:05]} Bxd5 {[%emt 0:00:30]} 10. Nc3 {[%emt 0:02:29]} Bxb3 {[%emt 0:03:00]} 11. axb3 {[%emt 0:00:11]} Qd7 {[%emt 0:01:48]} 12. Be3 {[%emt 0:02:29]} Be7 {[%emt 0:12:37]} 13. Ra4 {[%emt 0:11:46]} f5 {[%emt 0:09:10]} 14. f4 {[%emt 0:11:31]} exf4 {[%emt 0:06:14]} 15. Bxf4 {[%emt 0:00:20]} Bc5+ {[%emt 0:01:25]} 16. Kh1 {[%emt 0:00:11]} Rae8 {[%emt 0:00:58]} 17. Bg3 {[%emt 0:20:58]} Nd4 {[%emt 0:06:54]} 18. Bf2 {[%emt 0:01:07]} Bb6 {[%emt 0:00:47]} 19. Bxd4 {[%emt 0:02:13]} Bxd4 {[%emt 0:00:12]} 20. Qf3 {[%emt 0:05:24]} c6 {[%emt 0:01:53]} 21. Qf4 {[%emt 0:06:30]} Bb6 {[%emt 0:02:27]} 22. Raa1 {[%emt 0:00:51]} Qd4 {[%emt 0:05:25]} 23. Qxd4 {[%emt 0:01:45]} Bxd4 {[%emt 0:00:08]} 24. Rae1 {[%emt 0:01:33]} g6 {[%emt 0:04:33]} 25. Nd1 {[%emt 0:02:11]} Kf7 {[%emt 0:02:29]} 26. g3 {[%emt 0:01:16]} h5 {[%emt 0:01:32]} 27. Kg2 {[%emt 0:01:22]} Kf6 {[%emt 0:01:50]} 28. c3 {[%emt 0:02:17]} Bb6 {[%emt 0:00:28]} 29. d4 {[%emt 0:00:17]} Re6 {[%emt 0:04:40]} 30. Rxe6+ {[%emt 0:01:12]} Kxe6 {[%emt 0:00:06]} 31. Re1+ {[%emt 0:00:12]} Kf6 {[%emt 0:01:18]} 1/2-1/2

[Event "FIDE WSTC Open 65 2025"]
[Site "Prague"]
[Date "2025.02.21"]
[Round "5.22"]
[White "Van Egmond, Rogier"]
[Black "Huss, Andreas"]
[Result "0-1"]
[Annotator "ChessBase"]
[ECO "D02"]
[WhiteElo "2057"]
[BlackElo "2202"]
[PlyCount "48"]
[EventDate "2025.02.17"]
[EventType "team-tourn"]
[EventCountry "CZE"]
[SourceTitle "playchess.com"]
[Source "ChessBase"]
[SourceQuality "1"]
[TimeControl "40/5400+30:1800+30"]

1. d4 {[%emt 0:00:04]} e6 {[%emt 0:00:13]} 2. Nf3 {[%emt 0:00:06]} Nf6 {[%emt 0:00:23]} 3. g3 {[%emt 0:00:06]} c5 {[%emt 0:01:32]} 4. Bg2 {[%emt 0:00:11]} cxd4 {[%emt 0:00:28]} 5. O-O {[%emt 0:00:52]} d5 {[%emt 0:00:54]} 6. Nxd4 {[%emt 0:00:16]} Bc5 {[%emt 0:01:00]} 7. Nb3 {[%emt 0:01:38]} Bb6 {[%emt 0:00:52]} 8. c4 {[%emt 0:00:12]} O-O {[%emt 0:01:08]} 9. cxd5 {[%emt 0:08:07]} exd5 {[%emt 0:01:08]} 10. Bg5 {[%emt 0:01:11]} d4 {[%emt 0:05:07]} 11. N1d2 {[%emt 0:03:56]} h6 {[%emt 0:01:14]} 12. Bf4 {[%emt 0:05:16]} Nc6 {[%emt 0:02:55]} 13. Nc4 {[%emt 0:00:56]} Be6 {[%emt 0:11:48]} 14. Rc1 {[%emt 0:27:35]} Nh5 {[%emt 0:20:07]} 15. Bd2 {[%emt 0:04:51]} Re8 {[%emt 0:02:44]} 16. Bxc6 {[%emt 0:12:13]} bxc6 {[%emt 0:00:47]} 17. Nca5 {[%emt 0:00:45]} Bg4 {[%emt 0:17:21]} 18. Nxc6 {[%emt 0:04:23]} Qd7 {[%emt 0:05:28]} 19. f3 {[%emt 0:02:39]} d3+ {[%emt 0:03:47]} 20. e3 {[%emt 0:00:15]} Rxe3 {[%emt 0:01:19]} 21. Bxe3 {[%emt 0:04:20]} Bxe3+ {[%emt 0:00:11]} 22. Kh1 {[%emt 0:00:33]} Nxg3+ {[%emt 0:02:35]} 23. Kg2 {[%emt 0:07:31]} Nxf1 {[%emt 0:02:36]} 24. fxg4 {[%emt 0:00:49]} Bxc1 {[%emt 0:00:58]} 0-1